Cogmind - Beta 16.1 --- EXPLORER MODE // 2026.02.10 @ 08:50:00 Player: K.K.Y. Result: Destroyed by 8X-SE3(R) with Subdweller Machine Gun Performance ------------- Evolutions (0) 0 Regions Visited (2) 400 Robots Destroyed (45) 225 Value Destroyed (1002) 1002 Prototype IDs (13) 260 Alien Tech Used (0) 0 Bonus (0) 0 TOTAL SCORE: 1887 Bonus ------- None Cogmind --------- Core Integrity 0/250 Matter 300/300 Energy 165/170 System Corruption 0% Temperature Cool (0) Movement Treading (260) Ox1 Location -10/Subcaves Parts ------- > --- POWER (1) -------- Makeshift Power Source > --- PROPULSION (2) --- Spiked Treads Spiked Treads > --- UTILITY (3) ------ High-capacity Storage Unit Structural Scanner > --- WEAPON (2) ------- Barrage Gun Makeshift Axe > --- INVENTORY (20) --- Light Treads Improved Heat Sink Cooling System Cooling System Cooling System Cooling System Large Storage Unit Improved Terrain Scanner Heavy Battle Rifle Heavy Battle Rifle 1B-0RG's Assimilator Mining Laser Multitool Peak State ------------ > --- POWER ------------ Makeshift Power Source > --- PROPULSION ------- Spiked Treads Spiked Treads > --- UTILITY ---------- High-capacity Storage Unit Structural Scanner > --- WEAPON ----------- Barrage Gun Makeshift Axe > --- INVENTORY -------- Light Treads Improved Heat Sink Cooling System Cooling System Cooling System Cooling System Large Storage Unit Improved Terrain Scanner Heavy Battle Rifle Heavy Battle Rifle 1B-0RG's Assimilator Mining Laser Multitool [Rating: 26] Favorites ----------- Power Improved Ion Engine Engine Improved Ion Engine Propulsion Spiked Treads Treads Spiked Treads Utility Structural Scanner Device Structural Scanner Storage High-capacity Storage Unit Weapon EM Pulse Gun Energy Gun EM Pulse Gun Ballistic Gun Barrage Gun Ballistic Cannon Battle Cannon Slashing Weapon Makeshift Axe Build | -11 -10 -10 ------- Run | Yrd Mat Sub Slots Evolved 1 | . 1 . Power . | . . . Propulsion . | . . . Utility 1 | . 1 . Weapon . | . . . Parts Attached 21 | 7 1 13 Power 3 | 1 . 2 Engine 3 | 1 . 2 Core . | . . . Reactor . | . . . Propulsion 7 | 2 . 5 Treads 7 | 2 . 5 Leg . | . . . Wheel . | . . . Hover . | . . . Flight . | . . . Utility 5 | 2 1 2 Device 2 | 1 . 1 Storage 3 | 1 1 1 Processor . | . . . Hackware . | . . . Protection . | . . . Artifact . | . . . Weapon 6 | 2 . 4 Energy Gun 3 | 2 . 1 Energy Cannon . | . . . Ballistic Gun 1 | . . 1 Ballistic Cannon 1 | . . 1 Launcher . | . . . Special Weapon . | . . . Impact Weapon . | . . . Slashing Weapon 1 | . . 1 Piercing Weapon . | . . . Special Melee Weapon . | . . . Unidentified Prototypes . | . . . Parts Lost 7 | . . 7 Power 1 | . . 1 Propulsion 2 | . . 2 Utility 1 | . . 1 Weapon 3 | . . 3 Highest Loss Streak 2 | . . 2 To Critical Strikes . | . . . Average Backups 12 | 1 9 13 Power . | . . . Propulsion 1 | . 1 1 Utility 6 | . 6 7 Weapon 3 | . 2 3 Tool/Special . | . . . Unused Backups 15 | 1 . 14 Power . | . . . Propulsion . | . . . Utility 7 | 1 . 6 Weapon 6 | . . 6 Tool/Special 2 | . . 2 Average Slot Usage (%) 90 | . 84 92 Engine 11 | . 12 10 Treads 24 | . 25 24 Device 16 | . 9 18 Storage 12 | . 12 12 Energy Gun 9 | . 24 5 Ballistic Gun 6 | . . 7 Ballistic Cannon 2 | . . 3 Slashing Weapon 6 | . . 7 Peak Build Rating 26 | 7 9 26 Average Rating 18 | 6 8 21 On Entrance 5 | . 7 8 Avg Prop Armor Cover (%) . | . . . Naked Turns . | . . . Heaviest Build 55 | 20 30 55 Greatest Support 40 | 40 40 40 Greatest Overweight (x) 2 | . . 2 Average Overweight (x) . | . . . Largest Inventory Capacity 20 | 10 15 20 Average Capacity 17 | 9 12 19 Most Carried 20 | 5 15 20 Average Carried 15 | 1 9 17 Final Capacity 20 | 10 15 20 Final Carried 17 | 2 14 17 Class Distribution -------------------- 67% | Hacker-Mutant 32% | Derelict-Mutant Dominant Class ---------------- Hacker-Mutant | -10/Materials Hacker-Mutant | -10/Subcaves Resources | -11 -10 -10 ----------- Run | Yrd Mat Sub Matter Collected 641 | 270 20 351 Remotely . | . . . Salvage Created 1543 | 264 697 582 Parts 110 | 19 45 46 Haulers Intercepted 2 | . 2 . Recyclers Shooed 1 | . 1 . Parts Field Recycled . | . . . Retrieved Matter . | . . . Parts Self-Destructed . | . . . Prevented . | . . . Parts Restored . | . . . Kills | -11 -10 -10 ------- Run | Yrd Mat Sub Combat Hostiles Destroyed 25 | . 11 14 Melee 3 | . . 3 Guns 18 | . 11 7 Cannons 4 | . . 4 Classes Destroyed 12 | 3 5 4 Worker 2 | 2 . . Builder 3 | . 3 . Tunneler 6 | 6 . . Hauler 2 | . 2 . Recycler 2 | 1 1 . Turret 2 | . . 2 Watcher 3 | . 3 . Swarmer 7 | . 4 3 Grunt 7 | . 7 . Sentry 1 | . . 1 Artisan 2 | . . 2 Subdweller 10 | . . 10 Best Kill Streak 6 | 5 6 5 Combat Bots Only 3 | . 3 3 Max Kills in Single Turn 2 | 2 1 1 Gunslinging . | . . . Exploded . | . . . Melee 1 | . . 1 Uniques/NPCs Destroyed . | . . . Combat | -11 -10 -10 -------- Run | Yrd Mat Sub Hostile Shots Fired 213 | . 65 148 Missed 66 | . 23 43 Hits 147 | . 42 105 Projectile 147 | . 42 105 Critical Strikes 2 | . 1 1 Damage Taken 1314 | 19 286 1009 Core 258 | . 54 204 Absorbed by Shields . | . . . Ignored by Resistances 803 | 11 187 605 Regen/Repaired (Parts) 86 | . 86 . Core Remaining (%) 100 | 100 . . Volleys Fired 118 | 14 47 57 Largest 2 | 2 2 2 Hottest 105 | 80 80 105 Shots Fired 222 | 28 94 100 Gun 182 | 28 94 60 Cannon 40 | . . 40 Launcher . | . . . Special . | . . . Kinetic 49 | . . 49 Thermal 1 | . . 1 Explosive . | . . . Electromagnetic 172 | 28 94 50 Robot Hit Streak 23 | 16 13 23 Robot Miss Streak 3 | 1 3 1 Penetration Max . | . . . Secondary Targets . | . . . Shots Hit Robots 182 | 22 71 89 Core Hits 64 | 10 27 27 Critical Kills . | . . . Critical Parts Destroyed . | . . . Critical Strikes 2 | . 2 . Corrupt 2 | . 2 . Melee Attacks 45 | . . 45 Impact . | . . . Slashing 45 | . . 45 Piercing . | . . . Sneak Attacks 3 | . . 3 Combat Hostiles . | . . . Follow-up Attacks . | . . . Damage Inflicted 3294 | 364 1229 1701 Guns 1722 | 307 921 494 Cannons 411 | . . 411 Explosions 365 | 57 308 . Melee 796 | . . 796 Ramming . | . . . Kinetic 580 | . . 580 Thermal 365 | 57 308 . Explosive . | . . . Electromagnetic 1553 | 307 921 325 Impact . | . . . Slashing 796 | . . 796 Piercing . | . . . Highest Corruption . | . . . Average Corruption . | . . . Corruption Purged . | . . . Corruption Blocked . | . . . Overload Shots . | . . . Overflow Damage 74 | . . 74 Projectiles 11 | . . 11 Explosions . | . . . Melee 63 | . . 63 Knockbacks 2 | . . 2 Impact . | . . . Kinetic 2 | . . 2 Secondary . | . . . Self-Inflicted Damage 33 | 19 14 . Shots 3 | 1 2 . Rammed . | . . . Targets Rammed . | . . . Kicked . | . . . Crushed . | . . . Highest Temperature 250 | 108 250 3 Average Temperature 72 | 37 83 2 Received Heat Transfer 567 | . 231 336 Siege Activations . | . . . Martial Activations . | . . . Shielding Activations . | . . . Robots Disrupted . | . . . Combat Hostiles . | . . . Robots Corrupted . | . . . Combat Hostiles . | . . . Parts Fried 3 | 1 2 . Impact Corruptions . | . . . Robots Melted . | . . . Combat Hostiles . | . . . Parts Melted . | . . . Heat Transferred 350 | . 350 . Parts Sabotaged . | . . . Parts Stolen . | . . . Parts Stripped . | . . . Power Chain Reactions 9 | 2 7 . Alert | -11 -10 -10 ------- Run | Yrd Mat Sub Maximum Alert Level . | . . . Low Security (%) 100 | 100 100 . Level 1 . | . . . Level 2 . | . . . Level 3 . | . . . Level 4 . | . . . Level 5 . | . . . High Security . | . . . Max Security . | . . . Peak Influence 90 | 10 90 . Initial . | . . . Average 9 | 1 10 . Influence Increases 817 | 45 397 375 Destroy 0b10 Robot/C 340 | . 220 120 Destroy 0b10 Robot/NC 90 | 45 45 . Destroy Leader 60 | . 60 . Successful Hack 10 | . 10 . Disable Machine 16 | . 16 . Destroy Structure 16 | . 16 . Lose Combat Pursuer 285 | . 30 255 Influence Decreases 817 | 45 397 375 Time Decay 817 | 45 397 375 Squads Dispatched 1 | . 1 . Investigation 1 | . 1 . Extermination . | . . . Reinforcement . | . . . Assault . | . . . Garrison . | . . . Intercept . | . . . Searches Triggered . | . . . Construction Impeded . | . . . Haulers Reinforced . | . . . Active Scanning Responses . | . . . Cargo Convoy Interrupts . | . . . Stealth | -11 -10 -10 --------- Run | Yrd Mat Sub Distress Signals 1 | . 1 . Communications Jammed . | . . . Distress Signals . | . . . Times Spotted 41 | . 16 25 Peak Tracking Total 6 | . 3 6 Tactical Retreats 5 | . 2 3 Traps | -11 -10 -10 ------- Run | Yrd Mat Sub Traps Triggered 1 | . . 1 Indirectly . | . . . Trap Hack Attempts . | . . . Triggered . | . . . Disarmed 5 | . 5 . Reprogrammed . | . . . Reused . | . . . Traps Extracted . | . . . Installed . | . . . Triggered . | . . . Machines | -11 -10 -10 ---------- Run | Yrd Mat Sub Machines Disabled 6 | . 4 2 Max in Single Turn 1 | . 1 1 Machines Repaired . | . . . Machines Dismantled . | . . . Machines Sabotaged . | . . . Overloaded Fab Kills . | . . . Hacking | -11 -10 -10 --------- Run | Yrd Mat Sub Machines Accessed 14 | . 10 4 Terminals 7 | . 7 . Fabricators . | . . . Repair Stations 1 | . 1 . Recycling Units 2 | . 2 . Scanalyzers . | . . . Garrison Access . | . . . Total Hacks 35 | . 29 6 Successful 30 | . 24 6 Failed 5 | . 5 . Catastrophic . | . . . Database Lockouts . | . . . Manual 9 | . 9 . Terminals 20 | . 20 . Fabricators . | . . . Repair Stations 6 | . 6 . Recycling Units 3 | . 3 . Scanalyzers . | . . . Garrison Access . | . . . Terminal Hacks 14 | . 8 6 Record 3 | . . 3 Robot Analysis 2 | . 2 . Open Door 1 | . . 1 Locate Traps 3 | . 3 . Disarm Traps 3 | . 3 . Proto ID Catalog 1 | . . 1 Release Object 1 | . . 1 Fabricator Hacks . | . . . Repair Station Hacks 6 | . 6 . Scan Component 3 | . 3 . Repair 3 | . 3 . Recycling Unit Hacks 3 | . 3 . Report Inventory 1 | . 1 . Retrieve Components 2 | . 2 . Scanalyzer . | . . . Garrison Access Hacks . | . . . Unauthorized Hacks 7 | . 7 . Terminals 7 | . 7 . Botnet 7 | . 7 . Fabricators . | . . . Repair Stations . | . . . Recycling Units . | . . . Scanalyzers . | . . . Garrison Access . | . . . Data Cores Recovered . | . . . Used . | . . . Hacking Detections 6 | . 6 . Full Trace Events 2 | . 2 . Feedback Events . | . . . Feedback Blocked . | . . . Robot Schematics Acquired . | . . . Robots Built . | . . . Authchips . | . . . Time . | . . . Total Robot Build Rating . | . . . Part Schematics Acquired . | . . . Parts Built . | . . . Authchips . | . . . Time . | . . . Total Part Build Rating . | . . . Part Studies Acquired . | . . . Parts Repaired 3 | . 3 . Time 84 | . 84 . Parts Recycled . | . . . Recycled Matter . | . . . Retrieved Matter . | . . . Retrieved Components 9 | . 9 . Parts Scanalyzed . | . . . Part Schematics Acquired . | . . . Parts Damaged . | . . . Bothacking | -11 -10 -10 ------------ Run | Yrd Mat Sub Used RIF Installer . | . . . Robots Hacked . | . . . Non-combat . | . . . Combat . | . . . Robot Hacks Applied . | . . . Relay Couplers Released . | . . . Fabnet Peak Effective % . | . . . Robots Rewired . | . . . Allies Hacked . | . . . Hacks Repelled . | . . . Allies | -11 -10 -10 -------- Run | Yrd Mat Sub Total Allies . | . . . Largest Group . | . . . Highest-Rated Group . | . . . Highest-Rated Ally . | . . . Total Orders . | . . . Ally Attacks . | . . . Total Damage . | . . . Kills . | . . . Allies Corrupted . | . . . Allies Melted . | . . . Intel | -11 -10 -10 ------- Run | Yrd Mat Sub Active Infowar (turns) 8525 | 208 1274 7043 Sensors 4962 | 208 1274 3480 Structural 7042 | . . 7042 Robot Analysis Total 2 | . 2 . Derelict Logs Recovered 1 | . . 1 Drone Launches . | . . . Drone Recoveries . | . . . Exploration | -11 -10 -10 ------------- Run | Yrd Mat Sub Turns Passed 8877 | 226 1608 7043 Spaces Moved 3454 | 103 782 2569 Core 16 | 16 . . Treads 3438 | 87 782 2569 Legs . | . . . Wheels . | . . . Hover . | . . . Flight . | . . . Fastest Speed 50 | 50 160 160 Average Speed 211 | 142 160 230 Slowest Speed 360 | 160 160 360 Overloaded Moves . | . . . Propulsion Burnouts . | . . . Robots Hopped . | . . . Potential Cave-ins . | . . . Cave-ins Triggered . | . . . Exploration Rate (%) 66 | 6 97 96 Regions Visited 2 Branch Regions 1 Pre-discovered Areas 1 | . . 1 Known Exits Taken 2 | 1 1 . Unknown Exits Taken . | . . . Scrap Searched 15 | . . 15 Spaces Dug 5 | . . 5 Terrain Destroyed 27 | 8 14 5 Melee 5 | . . 5 Projectile . | . . . AOE 22 | 8 14 . Terrain Rammed . | . . . Walls Destroyed . | . . . Machines Disabled . | . . . Actions | -11 -10 -10 --------- Run | Yrd Mat Sub Total 4760 | 153 1045 3562 Wait 1076 | 21 199 856 Move 3452 | 102 781 2569 Hop . | . . . Pick Up 35 | 8 14 13 Fast Attach 3 | 2 1 . Attach 14 | 5 1 8 Detach 1 | . 1 . Swap 6 | . . 6 Drop 10 | 1 1 8 Fire 118 | 14 47 57 Melee 45 | . . 45 Ram . | . . . Kick . | . . . Crush . | . . . Escape Stasis . | . . . Rewire . | . . . Trap . | . . . Miscellaneous . | . . . Route ------- -11/Scrapyard -10/Materials (discovered 6 exits: *Mat x3 / *Min x2 / *Sub) -10/Subcaves (discovered 3 exits: *Mat x2 / *Rec) History --------- Turn | Location | Event 14 | -11/Scrapyard | Identified exit to Materials 14 | -11/Scrapyard | Discovered exit to Materials (range 16) 227 | -11/Scrapyard | Entered Materials 227 | -10/Materials | Evolved 1 slot: Utility x1 315 | -10/Materials | Build established: Hacker-Mutant 374 | -10/Materials | Identified exit to Mines 374 | -10/Materials | Discovered exit to Mines (range 15) 783 | -10/Materials | Discovered exit to Mines (range 8) 856 | -10/Materials | Identified exit to Materials 856 | -10/Materials | Discovered exit to Materials (range 16) 1055 | -10/Materials | Discovered exit to Materials (range 16) 1428 | -10/Materials | Discovered exit to Materials (range 5) 1500 | -10/Materials | Repaired Particle Gun 1527 | -10/Materials | Repaired Sensor Array 1554 | -10/Materials | Repaired EM Pulse Gun 1823 | -10/Materials | Identified exit to Subcaves 1823 | -10/Materials | Discovered exit to Subcaves (range 7) 1835 | -10/Materials | Entered Subcaves 1836 | -10/Subcaves | Approached by a straggling Scientist 1967 | -10/Subcaves | Learned location of Storage (-8) 2249 | -10/Subcaves | Shifting Twisted Machinery released Sub. Beam Cannon 2265 | -10/Subcaves | Shifting Twisted Machinery released Battle Rifle 2681 | -10/Subcaves | Core integrity fell below 50% 2688 | -10/Subcaves | Identified exit to Recycling 2688 | -10/Subcaves | Discovered exit to Recycling (range 15) 2937 | -10/Subcaves | Identified exit to Materials 2937 | -10/Subcaves | Discovered exit to Materials (range 7) 3054 | -10/Subcaves | Visited 4L-MR0's lab 3070 | -10/Subcaves | Found Prototype Special Melee Weapon 3518 | -10/Subcaves | Shifting Twisted Machinery released Sub. Monowheel 3548 | -10/Subcaves | Shifting Twisted Machinery released Barrage Gun 4048 | -10/Subcaves | Discovered exit to Materials (range 12) 4285 | -10/Subcaves | A swath of the cavern ceiling suddenly collapsed 5349 | -10/Subcaves | Core integrity fell below 20% 6302 | -10/Subcaves | Build established: Derelict-Mutant 7347 | -10/Subcaves | Visited Clippyterm 7355 | -10/Subcaves | Learned Research security intel 7485 | -10/Subcaves | Shifting Twisted Machinery released Sub. Monowheel 7499 | -10/Subcaves | Shifting Twisted Machinery released Sub. Machine Gun 8873 | -10/Subcaves | Ambushed by angry Subdweller bent on revenge 8878 | -10/Subcaves | Destroyed by 8X-SE3(R) with Subdweller Machine Gun Last Messages --------------- >>Record "Botnets" It looks like you seek to become a more effective hacker when it comes to the important hacks, and I heartily recommend installing Trojan(Botnet) on at least one or two Terminals to improve your odds of success elsewhere. Sub. Monowheel falls loose from the Twisted Machinery. Sub. Machine Gun falls loose from the Twisted Machinery. 08768_ Sneak attack on 4K-53T(u). 08808_ Destroyed Wheel. 08808_ Destroyed Multitool. 08869_ Sneak attack on 4K-53T(u). 08869_ 4K-53T(u) cries out in pain. 08869_ 4K-53T(u) destroyed. 08873_ 8X-SE3(R) angrily emerges from the Twisted Machinery. 08873_ 8X-SE3(R): "WEHOME!" Map ----- +----------------------------------------------------+ | ## ## ####### ## ##????????????? | | ##########?### ### ###????????????? | | ## ############# #### ####????????????? | | ### ##??????#### ## #### ###?????????????? | | #### ##??????## ####### ####????????????? | | #########????## ##### ## ###????????????? | | #"#######????### ###?## #### ##????????????? | | #####""##############?## #### ##????????????? | | """#"# #############??### ### ###????????????? | | ###"#""###""####??????### ## ###????????????? | | ##"###"""""#"###???????## ###????????????? | | ####"##"#"#"""##???????### ##????????????? | | "#####""#""#####???????### ##????????????? | | "##?####"#######???????###" "" " ##????????????? | | ###?#########?????????###"""" " ##????????????? | | "##???#######?????????## ### " ###????????????? | | ###?????#######???????## #### "####????????????? | | ###???#### #####??????###### " ####?????????????? | | ###??##### ####????#######" ####?????????????? | | ###??### ####???####### " ##?????????????? | | ####### ######## ##### ##?????????????? | | ###### ####### "##### ###????????????? | | #### #### "#### ###????????????? | | #### ### ## "#### ##????????????? | | # ######## %""## ##????????????? | | # #### ## @R ###????????????? | | ### ## ## ######????????????? | | ###### ## #### #####?????????????? | | ######## ## #### ###??????????????? | | ####?#### ### #### ##??????????????? | | ###?##### ### ##### ##??????????????? | | ###### ## ######## ###??????????????? | | ##### ###?########??????????????? | | < ## ##????####???????????????? | | #### ##???????????????????????? | | # ## #### ######## ##???????????????????????? | | #########################???????????????????????? | | ################?????####???????????????????????? | | ##??????????????????????????????????????????????? | | ##??????????????????????????????????????????????? | | ##??????????????????????????????????????????????? | | ##??????????????????????????????????????????????? | | ????????????????????????????????????????????????? | | ????????????????????????????????????????????????? | | ????????????????????????????????????????????????? | | ????????????????????????????????????????????????? | | ????????????????????????????????????????????????? | | ????????????????????????????????????????????????? | | ????????????????????????????????????????????????? | | ????????????????????????????????????????????????? | +----------------------------------------------------+ Best States ------------- Heat Dissipation 25 Energy Generation 15 Energy Capacity 265 Matter Stores 300 Matter Capacity 300 Sight Range 16 Robot Scan Range 14 Terrain Scan Density 10 Resistance: KI 35 Resistance: TH 35 Resistance: EX 35 Resistance: EM 35 Resistance: I 35 Resistance: S 35 Resistance: P 35 Evasion (%) 50 Recoil Reduction 2 Offensive Hacking 20 Item Schematics ----------------- None Robot Schematics ------------------ None Fabricated ------------ Nothing Repaired ---------- Particle Gun | 48% | -10/Materials Sensor Array | 65% | -10/Materials EM Pulse Gun | 11% | -10/Materials Studied --------- None Alien Tech Used ----------------- None Achievements -------------- None Challenges ------------ None Game ------ Seed SensorTerrainWarhead Manual? 0 Play Time 00:25:33 Cumulative 326.5 hours Start 2026.02.10 @ 08:08:52 End 2026.02.10 @ 08:50:00 Sessions 1 Manual Loads 0 Difficulty Explorer Special Mode None Game No. 516 Rogue 0 Adventurer 0 Explorer 516 Win Type - Total 0 Types 0/0/0/0/0/0/0/0/0/0 Lore% 77 Gallery% 67 Achievement% 56 Wizard Run 0 Options --------- Layout 1 ASCII 0 Keyboard 0 Movement Mouse Keybinds 1 Fullscreen 1 Font 24/Smallcaps Map View 50x35 Zoom Use 0% Tactical HUD 1 Map Filters NONE Filters NONE Steam 1 RUN: e1ce275e-7ce4-4612-9a49-4e953e1b03e1